Cogmind - Beta 14 @@@ ROGUE MODE // 2024.12.10 @ 20:26:13 Player: morimori Result: Destroyed by as-43124 with Assembled Heavy Rifle Performance ------------- Evolutions (0) 0 Regions Visited (2) 400 Robots Destroyed (39) 195 Value Destroyed (611) 611 Prototype IDs (0) 0 Alien Tech Used (0) 0 Bonus (0) 0 TOTAL SCORE: 1206 Bonus ------- None Cogmind --------- Core Integrity 0/250 Matter 294/300 Energy 125/125 System Corruption 0% Temperature Cool (75) Movement Rolling (95) Ox1 Location -10/Mines Parts ------- > --- POWER (1) -------- Light Ion Engine > --- PROPULSION (2) --- Wheel Wheel > --- UTILITY (2) ------ Large Storage Unit Hardened Light Armor Plating > --- WEAPON (2) ------- Light Assault Rifle Light Assault Rifle > --- INVENTORY (15) --- Ion Engine Wheel Hover Unit Hover Unit Hover Unit Hover Unit Hover Unit Sensor Array Improved Terrain Scanner Hardened Light Armor Plating Hacking Suite Hacking Suite Hacking Suite Light Assault Rifle Mace Peak State ------------ > --- POWER ------------ Light Ion Engine > --- PROPULSION ------- Wheel Wheel > --- UTILITY ---------- Large Storage Unit Hardened Light Armor Plating > --- WEAPON ----------- Light Assault Rifle Light Assault Rifle > --- INVENTORY -------- Light Ion Engine Wheel Wheel Hover Unit Hover Unit Hover Unit Hover Unit Sensor Array Improved Terrain Scanner Hardened Light Armor Plating Hacking Suite Hacking Suite Light Assault Rifle Mace [Rating: 10] Favorites ----------- Power Light Ion Engine Engine Light Ion Engine Propulsion Wheel Wheel Wheel Hover Unit Hover Unit Utility Small Storage Unit Device Seismic Detector Storage Small Storage Unit Protection Hardened Light Armor Plating Weapon Light Assault Rifle Energy Gun Small Laser Ballistic Gun Light Assault Rifle Ballistic Cannon Light Cannon Build | -11 -10 -10 ------- Run | Yrd Mat Min Slots Evolved . | . . . Power . | . . . Propulsion . | . . . Utility . | . . . Weapon . | . . . Parts Attached 41 | 8 33 . Power 7 | 1 6 . Engine 7 | 1 6 . Core . | . . . Reactor . | . . . Propulsion 12 | 2 10 . Treads . | . . . Leg . | . . . Wheel 11 | 2 9 . Hover 1 | . 1 . Flight . | . . . Utility 10 | 3 7 . Device 4 | 2 2 . Storage 3 | 1 2 . Processor . | . . . Hackware . | . . . Protection 3 | . 3 . Artifact . | . . . Weapon 12 | 2 10 . Energy Gun 3 | 1 2 . Energy Cannon . | . . . Ballistic Gun 7 | 1 6 . Ballistic Cannon 2 | . 2 . Launcher . | . . . Special Weapon . | . . . Impact Weapon . | . . . Slashing Weapon . | . . . Piercing Weapon . | . . . Special Melee Weapon . | . . . Unidentified Prototypes . | . . . Parts Lost 7 | . 7 . Power 1 | . 1 . Propulsion 3 | . 3 . Utility 1 | . 1 . Weapon 2 | . 2 . Highest Loss Streak 4 | . 4 . To Critical Strikes . | . . . Average Slot Usage (%) 93 | . 93 100 Engine 12 | . 12 14 Wheel 26 | . 26 28 Device 6 | . 7 . Storage 14 | . 14 14 Protection 4 | . 3 14 Energy Gun 4 | . 4 . Ballistic Gun 20 | . 20 28 Ballistic Cannon 2 | . 2 . Peak Build Rating 10 | 7 10 10 Average Rating 8 | 6 8 10 On Entrance 5 | . 7 10 Naked Turns . | . . . Heaviest Build 32 | 12 32 30 Greatest Support 26 | 26 26 20 Greatest Overweight (x) 2 | . 2 1 Average Overweight (x) . | . . 1 Largest Inventory Capacity 15 | 8 15 15 Average Capacity 11 | 7 11 15 Most Carried 15 | 7 15 15 Average Carried 10 | 4 10 15 Final Capacity 15 | 8 15 15 Final Carried 15 | 6 15 15 Class Distribution -------------------- 74% | Mutant 25% | Scavenger-Mutant Dominant Class ---------------- Mutant | -10/Materials Mutant | -10/Mines Resources | -11 -10 -10 ----------- Run | Yrd Mat Min Matter Collected 815 | 292 517 6 Remotely . | . . . Salvage Created 1087 | 117 926 44 Parts 89 | 13 72 4 Haulers Intercepted 1 | . 1 . Recyclers Shooed 4 | . 4 . Parts Field Recycled . | . . . Retrieved Matter . | . . . Parts Self-Destructed . | . . . Prevented . | . . . Kills | -11 -10 -10 ------- Run | Yrd Mat Min Combat Hostiles Destroyed 17 | . 17 . Guns 13 | . 13 . Cannons 4 | . 4 . Classes Destroyed 9 | 3 6 . Worker 4 | 1 3 . Builder 1 | . 1 . Tunneler 7 | 3 2 2 Hauler 1 | . 1 . Recycler 4 | 1 3 . Operator 3 | . 3 . Watcher 2 | . 2 . Swarmer 6 | . 6 . Grunt 11 | . 11 . Best Kill Streak 7 | 3 7 2 Combat Bots Only 4 | . 4 . Max Kills in Single Turn 1 | 1 1 1 Gunslinging . | . . . Exploded . | . . . Melee . | . . . Uniques/NPCs Destroyed . | . . . Combat | -11 -10 -10 -------- Run | Yrd Mat Min Hostile Shots Fired 111 | . 107 4 Missed 25 | . 25 . Damage Taken 930 | . 887 43 Core 254 | . 222 32 Absorbed by Shields . | . . . Core Remaining (%) 100 | 100 . . Volleys Fired 111 | 12 93 6 Largest 2 | 2 2 2 Hottest 80 | 70 80 40 Shots Fired 219 | 23 184 12 Gun 193 | 23 158 12 Cannon 26 | . 26 . Launcher . | . . . Special . | . . . Kinetic 168 | 12 144 12 Thermal 51 | 11 40 . Explosive . | . . . Electromagnetic . | . . . Robot Hit Streak 13 | 8 13 8 Robot Miss Streak 5 | 2 5 3 Penetration Max . | . . . Secondary Targets 2 | . 2 . Max Gunslinging Chain 1 | . 1 . Shots Hit Robots 145 | 15 122 8 Core Hits 71 | 9 57 5 Critical Kills . | . . . Critical Parts Destroyed 1 | . 1 . Critical Strikes 5 | 3 2 . Burn 3 | 3 . . Destroy 1 | . 1 . Blast 1 | . 1 . Melee Attacks . | . . . Impact . | . . . Slashing . | . . . Piercing . | . . . Sneak Attacks . | . . . Combat Hostiles . | . . . Follow-up Attacks . | . . . Damage Inflicted 1390 | 154 1168 68 Guns 1183 | 154 961 68 Cannons 207 | . 207 . Explosions . | . . . Melee . | . . . Ramming . | . . . Kinetic 1012 | 55 889 68 Thermal 378 | 99 279 . Explosive . | . . . Electromagnetic . | . . . Impact . | . . . Slashing . | . . . Piercing . | . . . Highest Corruption . | . . . Average Corruption . | . . . Corruption Purged . | . . . Corruption Blocked . | . . . Overload Shots . | . . . Overflow Damage . | . . . Projectiles . | . . . Explosions . | . . . Melee . | . . . Knockbacks 1 | . 1 . Impact . | . . . Kinetic 1 | . 1 . Secondary . | . . . Self-Inflicted Damage . | . . . Shots . | . . . Rammed . | . . . Targets Rammed . | . . . Kicked . | . . . Crushed . | . . . Highest Temperature 75 | 60 68 75 Average Temperature 17 | 25 16 19 Received Heat Transfer 471 | . 411 60 Siege Activations . | . . . Robots Corrupted . | . . . Combat Hostiles . | . . . Parts Fried . | . . . Impact Corruptions . | . . . Robots Melted . | . . . Combat Hostiles . | . . . Parts Melted 3 | 2 1 . Heat Transferred 1168 | 518 650 . Parts Sabotaged . | . . . Parts Stolen . | . . . Parts Stripped . | . . . Power Chain Reactions . | . . . Alert | -11 -10 -10 ------- Run | Yrd Mat Min Peak Influence 343 | 25 343 130 Initial 120 | . 16 120 Average 148 | 12 163 124 Maximum Alert Level 1 | . 1 . Low Security (%) 65 | 100 59 100 Level 1 34 | . 40 . Level 2 . | . . . Level 3 . | . . . Level 4 . | . . . Level 5 . | . . . High Security . | . . . Max Security . | . . . Squads Dispatched 4 | . 4 . Investigation 2 | . 2 . Extermination . | . . . Reinforcement 2 | . 2 . Assault . | . . . Garrison . | . . . Intercept . | . . . Searches Triggered . | . . . Construction Impeded . | . . . Haulers Reinforced . | . . . Active Scanning Responses . | . . . Cargo Convoy Interrupts . | . . . Stealth | -11 -10 -10 --------- Run | Yrd Mat Min Distress Signals 3 | . 3 . Communications Jammed . | . . . Distress Signals . | . . . Times Spotted 43 | . 39 4 Peak Tracking Total 9 | . 9 4 Tactical Retreats 1 | . 1 . Traps | -11 -10 -10 ------- Run | Yrd Mat Min Traps Triggered 2 | . 2 . Indirectly . | . . . Trap Hack Attempts . | . . . Triggered . | . . . Disarmed . | . . . Reprogrammed . | . . . Reused . | . . . Traps Extracted . | . . . Installed . | . . . Triggered . | . . . Machines | -11 -10 -10 ---------- Run | Yrd Mat Min Machines Disabled . | . . . Max in Single Turn . | . . . Machines Repaired . | . . . Machines Dismantled . | . . . Machines Sabotaged . | . . . Overloaded Fab Kills . | . . . Hacking | -11 -10 -10 --------- Run | Yrd Mat Min Machines Accessed 9 | . 9 . Terminals 6 | . 6 . Fabricators . | . . . Repair Stations 1 | . 1 . Recycling Units 2 | . 2 . Scanalyzers . | . . . Garrison Access . | . . . Total Hacks 24 | . 24 . Successful 10 | . 10 . Failed 14 | . 14 . Catastrophic 2 | . 2 . Database Lockouts . | . . . Manual 15 | . 15 . Terminals 16 | . 16 . Fabricators . | . . . Repair Stations 1 | . 1 . Recycling Units 7 | . 7 . Scanalyzers . | . . . Garrison Access . | . . . Terminal Hacks 3 | . 3 . Terminal Index 1 | . 1 . Locate Traps 2 | . 2 . Fabricator Hacks . | . . . Repair Station Hacks . | . . . Recycling Unit Hacks 2 | . 2 . Retrieve Components 2 | . 2 . Scanalyzer . | . . . Garrison Access Hacks . | . . . Unauthorized Hacks 5 | . 5 . Terminals 3 | . 3 . Assimilate 1 | . 1 . Botnet 1 | . 1 . Operators 1 | . 1 . Fabricators . | . . . Repair Stations . | . . . Recycling Units 2 | . 2 . Tunnel 2 | . 2 . Scanalyzers . | . . . Garrison Access . | . . . Data Cores Recovered 1 | . 1 . Used . | . . . Hacking Detections 7 | . 7 . Full Trace Events . | . . . Feedback Events . | . . . Feedback Blocked . | . . . Robot Schematics Acquired . | . . . Robots Built . | . . . Authchips . | . . . Time . | . . . Total Robot Build Rating . | . . . Part Schematics Acquired . | . . . Parts Built . | . . . Authchips . | . . . Time . | . . . Total Part Build Rating . | . . . Parts Repaired . | . . . Time . | . . . Parts Recycled . | . . . Recycled Matter . | . . . Retrieved Matter . | . . . Retrieved Components 12 | . 12 . Parts Scanalyzed . | . . . Part Schematics Acquired . | . . . Parts Damaged . | . . . Bothacking | -11 -10 -10 ------------ Run | Yrd Mat Min Used RIF Installer . | . . . Robots Hacked . | . . . Non-combat . | . . . Combat . | . . . Robot Hacks Applied . | . . . Relay Couplers Released . | . . . Fabnet Peak Effective % . | . . . Robots Rewired . | . . . Allies Hacked . | . . . Hacks Repelled . | . . . Allies | -11 -10 -10 -------- Run | Yrd Mat Min Total Allies . | . . . Largest Group . | . . . Highest-Rated Group . | . . . Highest-Rated Ally . | . . . Total Orders . | . . . Ally Attacks . | . . . Total Damage . | . . . Kills . | . . . Allies Corrupted . | . . . Allies Melted 1 | . . 1 Intel | -11 -10 -10 ------- Run | Yrd Mat Min Robot Analysis Total . | . . . Derelict Logs Recovered 1 | . . 1 Drone Launches . | . . . Drone Recoveries . | . . . Exploration | -11 -10 -10 ------------- Run | Yrd Mat Min Turns Passed 1684 | 138 1410 136 Spaces Moved 1213 | 71 1019 123 Core 1 | 1 . . Treads . | . . . Legs . | . . . Wheels 1212 | 70 1019 123 Hover . | . . . Flight . | . . . Fastest Speed 50 | 50 80 95 Average Speed 91 | 89 91 95 Slowest Speed 110 | 100 110 95 Overloaded Moves . | . . . Propulsion Burnouts . | . . . Robots Hopped . | . . . Cave-ins Triggered . | . . . Exploration Rate (%) 44 | 5 96 32 Regions Visited 2 Branch Regions 1 Pre-discovered Areas 3 | . 2 1 Known Exits Taken . | . . . Unknown Exits Taken 2 | 1 1 . Scrap Searched . | . . . Spaces Dug . | . . . Terrain Destroyed . | . . . Melee . | . . . Projectile . | . . . AOE . | . . . Terrain Rammed . | . . . Walls Destroyed . | . . . Machines Disabled . | . . . Actions | -11 -10 -10 --------- Run | Yrd Mat Min Total 1607 | 121 1352 134 Wait 174 | 22 147 5 Move 1211 | 70 1018 123 Hop . | . . . Pick Up 32 | 7 25 . Fast Attach 23 | 7 16 . Attach 2 | . 2 . Detach 2 | . 2 . Swap 16 | 1 15 . Drop 36 | 2 34 . Fire 111 | 12 93 6 Melee . | . . . Ram . | . . . Kick . | . . . Crush . | . . . Escape Stasis . | . . . Rewire . | . . . Trap . | . . . Miscellaneous . | . . . Route ------- -11/Scrapyard -10/Materials (discovered 4 exits: [*Mat x3] / [*Min]) -10/Mines History --------- Turn | Location | Event 22 | -11/Scrapyard | Discovered new exit (range 15) 139 | -11/Scrapyard | Entered Materials 311 | -10/Materials | Build established: Mutant 678 | -10/Materials | Core integrity fell below 50% 699 | -10/Materials | Lost 4 parts (1p1n2w) 746 | -10/Materials | Discovered new exit (range 7) 1125 | -10/Materials | Discovered new exit (range 16) 1183 | -10/Materials | Core integrity fell below 20% 1358 | -10/Materials | Discovered new exit (range 16) 1513 | -10/Materials | Discovered new exit (range 10) 1549 | -10/Materials | Entered Mines 1550 | -10/Mines | Learned location of Storage (-7) 1613 | -10/Mines | Learned location of 1 exit from Materials 1657 | -10/Mines | Assembled infested the area 1662 | -10/Mines | Assisted by a Guerilla fighting off Assembled 1685 | -10/Mines | Destroyed by as-43124 with Assembled Heavy Rifle Last Messages --------------- 01646_ K-01 Serf collects debris. 01657_ ALERT: Infestation in the mines, dispatching Demolisher response squad. 01659_ K-01 Serf collects debris. 01662_ A derelict emerges from the shadows: "You need to get out of here! I've been tracking a group of Assembled to figure out where they're coming from, and they're closing on this area, come on!" 01662_ G7-OJB(h): "I'll hold them off! Go on ahead or try to find another way!" 01663_ K-01 Serf collects debris. 01664_ HV Slug penetrates Wall. 01666_ G7-OJB(h) heat damages Flexi-carbon Leg, Flexi-carbon Leg, Bore Cannon, Armor Integrity Analyzer. 01666_ K-01 Serf collects debris. 01669_ G7-OJB(h) heat short circuits Flexi-carbon Leg. 01669_ G7-OJB(h) critical meltdown. 01669_ K-01 Serf collects debris. 01671_ as-59212 sneak attacks. 01671_ K-01 Serf destroyed. 01671_ K-01 Serf collects debris. Map ----- +----------------------------------------------------+ | ?????????????????????????????????????????????????? | | ?????????????????????????????????????????????????? | | ??????????????????????????#######????????????????? | | ????????????????????? ????# #????????????????? | | ???????????????????? #??# % #????????????????? | | ???????????????????? # ##???????????????? | | ?????????????????# ???# ##??????????????? | | ?????????????????## ??##" ?## #??????????????? | | ???????????????????????# " ## %= #??????????????? | | ????????????????????????## = ##??????????????? | | ????????????????????????# #???????????????? | | ???????????????????????# ## = #???????????????? | | ??????????????????????# ??##= #???????????????? | | ??????????????????????# ????## #???????????????? | | ?????????????????????# ??????# ##??????????????? | | ???????????????????? ???????# #??????????????? | | ????????????????????? ????????# #??????????????? | | ??????????????????????????????# ##??????????????? | | ?????????????????????????????## #???????????????? | | ?????????????????????????????# ##??????????????? | | ????????????????????????????## ##?????????????? | | ???????????????????????????## a #?????????????? | | ?????????????????????????###aa #?????????????? | | ????????????????????????## a #?????????????? | | ????????????????????????# %| #?????????????? | | ????????????????????????#@ ## ##?????????????? | | ????????????????????????# #######??????????????? | | ????????????????????????# ##????????????????????? | | ???????????????????????## #?????????????????????? | | ??????????????????????## ##?????????????????????? | | ??????????????????????# #??????????????????????? | | ??????????????##??????# ##?????????????????????? | | ??????????????? ?????# = ##????????????????????? | | ????????????????# ##### % ## ##????????????????? | | ????????????????# * #??###???????????? | | ????????????????# #?## ##?????????? | | ????????????????##### # #### ########?? | | ????????????????????# ## ##?# ## ### | | ????????????????????# ## ##??# ## | | ????????????????????# ## #???# | | ????????????????????# ## #????# | | ????????????????????# ## ## #?????# #### | | ????????????????????# ##### ##????## ##??? | | ????????????????????# #??## ###???## ##???? | | ????????????????????# #### ####### ## #????? | | ????????????????????# """ #????? | | ????????????????????##### """ #????? | | ????????????????????????# """ #############????? | | ????????????????????????## ##????????????????? | | ?????????????????????????## ##?????????????????? | +----------------------------------------------------+ Best States ------------- Heat Dissipation 47 Energy Generation 10 Energy Capacity 250 Matter Stores 300 Matter Capacity 300 Sight Range 16 Terrain Scan Density 10 Armor Coverage 150 Evasion (%) 44 Item Schematics ----------------- None Robot Schematics ------------------ None Fabricated ------------ Nothing Alien Tech Used ----------------- None Achievements -------------- None Challenges ------------ None Game ------ Seed ChipGatlingChainsaw Manual? 0 Play Time 00:17:50 Cumulative 288.1 hours Start 2024.12.10 @ 19:57:57 End 2024.12.10 @ 20:26:13 Sessions 1 Manual Loads 0 Difficulty Rogue Special Mode None Game No. 151 Rogue 151 Adventurer 0 Explorer 0 Win Type - Total 4 Types 4/0/0/0/0/0/0/0/0 Lore% 45 Gallery% 66 Achievement% 58 Wizard Run 0 Options --------- Layout 0 ASCII 0 Keyboard 1 Movement Vi Keybinds 0 Fullscreen 2 Font 18/SmallcapsGlow Map View 76x50 Zoom Use 0% Tactical HUD 1 Map Filters NONE Filters NONE Steam 1 RUN: cc52b33c-c17b-4230-9c22-7f3fcdd6a80d